fUST/lending_fUST_20240721
["ID","MTS","AMOUNT","RATE_DAILY","PERIOD"]
[332755089,1721503863023,-1811.52,0.00014794,2]
[332755090,1721503863033,-560.63,0.00014794,2]
[332755091,1721503863043,-500.0,0.00014794,2]
[332755092,1721503863052,-779.56,0.00014794,2]
[332755093,1721503863062,-855.61,0.00014794,2]
[332755094,1721503863072,-500.0,0.00014794,2]
[332755095,1721503863090,-897.56,0.00014794,2]
[332755096,1721503863100,-500.0,0.00014794,2]
[332755097,1721503863111,-500.0,0.00014794,2]
[332755098,1721503863124,-500.0,0.00014794,2]
[332755099,1721503863135,-600.4,0.00014794,2]
[332755100,1721503863144,-982.99,0.00014794,2]
[332755101,1721503863154,-2168.23,0.00014794,2]
[332755102,1721503863165,-534.87,0.00014794,2]
[332755103,1721503863174,-1393.65,0.00014794,2]
[332755104,1721503863184,-500.0,0.00014794,2]
[332755105,1721503863196,-807.67,0.00014794,2]
[332755106,1721503863206,-1040.73,0.00014794,2]
[332755107,1721503863217,-2063.58,0.00014794,2]
[332755108,1721503863227,-500.0,0.00014794,2]
[332755109,1721503863237,-1804.4,0.00014794,2]
[332755110,1721503863247,-500.0,0.00014794,2]
[332755111,1721503863258,-2665.52,0.00014794,2]
[332755112,1721503863268,-2146.19,0.00014794,2]
[332755113,1721503863278,-500.0,0.00014794,2]
[332755114,1721503863455,-500.0,0.00014794,2]
[332755115,1721503863465,-500.0,0.00014794,2]
[332755116,1721503863476,-500.0,0.00014794,2]
[332755117,1721503863486,-921.43,0.00014794,2]
[332755118,1721503863496,-500.0,0.00014794,2]
[332755119,1721503863506,-721.38,0.00014794,2]
[332755120,1721503863516,-500.0,0.00014794,2]
[332755121,1721503863526,-500.0,0.00014794,2]
[332755122,1721503863536,-763.32,0.00014794,2]
[332755123,1721503863547,-500.0,0.00014794,2]
[332755124,1721503863557,-500.0,0.00014794,2]
[332755125,1721503863567,-500.0,0.00014794,2]
[332755126,1721503863577,-500.0,0.00014794,2]
[332755127,1721503863588,-500.0,0.00014794,2]
[332755128,1721503863598,-500.0,0.00014794,2]
[332755129,1721503863609,-699.32,0.00014794,2]
[332755130,1721503863619,-1069.52,0.00014794,2]
[332755131,1721503863628,-724.24,0.00014794,2]
[332755132,1721503863638,-500.0,0.00014794,2]
[332755133,1721503863648,-1367.5,0.00014794,2]
[332755134,1721503863658,-1003.63,0.00014794,2]
[332755135,1721503863669,-2488.95,0.00014794,2]
[332755136,1721503863681,-1791.92,0.00014794,2]
[332755137,1721503863691,-1566.01,0.00014794,2]
[332755138,1721503863702,-500.0,0.00014794,2]
[332755139,1721503863713,-500.0,0.00014794,2]
[332755140,1721503863725,-3002.39,0.00014794,2]
[332755141,1721503863735,-889.11,0.00014794,2]
[332755142,1721503863745,-500.0,0.00014794,2]
[332755143,1721503863755,-2074.95,0.00014794,2]
[332755144,1721503863764,-3869.74,0.00014794,2]
[332755145,1721503863776,-816.21,0.00014794,2]
[332755146,1721503863785,-2356.17,0.00014794,2]
[332755147,1721503863795,-769.49,0.00014794,2]
[332755148,1721503863805,-500.0,0.00014794,2]
[332755149,1721503863815,-1193.56,0.00014794,2]
[332755150,1721503863824,-151.0,0.00014794,2]
[332755151,1721503863835,-5614.66,0.00014794,2]
[332755152,1721503863844,-4842.68,0.00014794,2]
[332755153,1721503863854,-2628.42,0.00014794,2]
[332755154,1721503863863,-500.0,0.00014794,2]
[332755155,1721503863873,-1334.16,0.00014794,2]
[332755156,1721503863882,-762.0,0.00014794,2]
[332755157,1721503863892,-2675.28,0.00014794,2]
[332755158,1721503863902,-578.61,0.00014794,2]
[332755159,1721503863912,-682.11,0.00014794,2]
[332755160,1721503863922,-596.66,0.00014794,2]
[332755161,1721503863933,-653.11,0.00014794,2]
[332755162,1721503863942,-688.02,0.00014794,2]
[332755163,1721503863953,-3568.54,0.00014794,2]
[332755164,1721503863963,-2479.41,0.00014794,2]
[332755165,1721503863972,-3611.41,0.00014794,2]
[332755166,1721503863982,-500.0,0.00014794,2]
[332755167,1721503863993,-1615.36,0.00014794,2]
[332755168,1721503864003,-1455.17,0.00014794,2]
[332755169,1721503864012,-647.58,0.00014794,2]
[332755170,1721503864022,-601.56,0.00014794,2]
[332755171,1721503864031,-1164.01,0.00014794,2]
[332755172,1721503864041,-1876.24,0.00014794,2]
[332755173,1721503864051,-500.0,0.00014794,2]
[332755174,1721503864062,-594.49,0.00014794,2]
[332755175,1721503864072,-922.66,0.00014794,2]
[332755176,1721503864084,-505.99,0.00014794,2]
[332755177,1721503864097,-1006.7,0.00014794,2]
[332755178,1721503864107,-3831.44,0.00014794,2]
[332755179,1721503864118,-660.13,0.00014794,2]
[332755180,1721503864130,-500.0,0.00014794,2]
[332755181,1721503864140,-9525.09,0.00014794,2]
[332755182,1721503864150,-5451.22,0.00014794,2]
[332755183,1721503864159,-930.37,0.00014794,2]
[332755184,1721503864170,-3826.08,0.00014794,2]
[332755185,1721503864180,-500.0,0.00014794,2]
[332755186,1721503864190,-3008.42,0.00014794,2]
[332755187,1721503864199,-2915.71,0.00014794,2]
[332755188,1721503864209,-500.0,0.00014794,2]
[332755189,1721503864219,-500.0,0.00014794,2]
[332755190,1721503864228,-650.96,0.00014794,2]
[332755191,1721503864238,-500.0,0.00014794,2]
[332755192,1721503864248,-2230.68,0.00014794,2]
[332755193,1721503864258,-500.0,0.00014794,2]
[332755194,1721503864269,-558.88,0.00014794,2]
[332755195,1721503864278,-2974.58,0.00014794,2]
[332755196,1721503864288,-2007.77,0.00014794,2]
[332755197,1721503864298,-500.0,0.00014794,2]
[332755198,1721503864307,-3110.77,0.00014794,2]
[332755199,1721503864317,-6288.28332442,0.00014794,2]
[332755200,1721503865087,-500.0,0.00013698,2]
[332755201,1721503865099,-1226.56,0.00013698,2]
[332755202,1721503865109,-277.41724715,0.00013972,2]
[332755203,1721503865122,-222.58275285,0.00013972,2]
[332755204,1721503865131,-500.0,0.00014246,2]
[332755205,1721503865141,-500.0,0.0001452,2]
[332755206,1721503865150,-185.91721715,0.00014794,2]
[332755207,1721503865162,-671.27431903,0.00014794,2]
[332755208,1721503865176,-248.1851394,0.00014794,2]
[332755209,1721503865186,-463.9148606,0.00014794,2]
[332755210,1721503865199,-36.0851394,0.00014794,2]
[332755211,1721503865209,-1486.4,0.00014794,2]
[332755212,1721503865218,-764.22,0.00014794,2]
[332755213,1721503865228,-500.0,0.00014794,2]
[332755214,1721503865237,-4793.63,0.00014794,2]
[332755215,1721503865246,-1123.92,0.00014794,2]
[332755216,1721503865256,-610.77,0.00014794,2]
[332755217,1721503865266,-500.0,0.00014794,2]
[332755218,1721503865276,-500.0,0.00014794,2]
[332755219,1721503865286,-500.0,0.00014794,2]
[332755220,1721503865295,-5183.34,0.00014794,2]
[332755221,1721503865305,-500.0,0.00014794,2]
[332755222,1721503865316,-500.0,0.00014794,2]
[332755223,1721503865325,-724.89,0.00014794,2]
[332755224,1721503865335,-1377.72,0.00014794,2]
[332755225,1721503865345,-1079.42,0.00014794,2]
[332755226,1721503865355,-500.0,0.00014794,2]
[332755227,1721503865365,-1410.52,0.00014794,2]
[332755228,1721503865373,-2024.84,0.00014794,2]
[332755229,1721503865382,-1792.69,0.00014794,2]
[332755230,1721503865392,-11527.04,0.00014794,2]
[332755231,1721503865401,-2718.37,0.00014794,2]
[332755232,1721503865410,-660.429424,0.00014794,2]
[332755233,1721503865419,-500.0,0.00014794,2]
[332755234,1721503865429,-500.0,0.00014794,2]
[332755235,1721503865438,-500.0,0.00014794,2]
[332755236,1721503865447,-660.429424,0.00014794,2]
[332755237,1721503865457,-500.0,0.00014794,2]
[332755238,1721503865466,-3222.71,0.00014794,2]
[332755239,1721503865476,-1559.97,0.00014794,2]
[332755240,1721503865486,-500.0,0.00014794,2]
[332755241,1721503865496,-500.0,0.00014794,2]
[332755242,1721503865505,-2746.79,0.00014794,2]
[332755243,1721503865515,-3000.14,0.00014794,2]
[332755244,1721503865524,-500.0,0.00014794,2]
[332755245,1721503865534,-570.42,0.00014794,2]
[332755246,1721503865543,-2099.06,0.00014794,2]
[332755247,1721503865553,-500.0,0.00014794,2]
[332755248,1721503865562,-522.76,0.00014794,2]
[332755249,1721503865573,-598.86,0.00014794,2]
[332755250,1721503865582,-500.0,0.00014794,2]
[332755251,1721503865592,-1267.33,0.00014794,2]
[332755252,1721503865602,-1137.01,0.00014794,2]
[332755253,1721503865611,-1199.19,0.00014794,2]
[332755254,1721503865621,-556.19,0.00014794,2]
[332755255,1721503865632,-941.71,0.00014794,2]
[332755256,1721503865641,-1614.07,0.00014794,2]
[332755257,1721503865651,-15542.84,0.00014794,2]
[332755258,1721503865661,-500.0,0.00014794,2]
[332755259,1721503865671,-500.0,0.00014794,2]
[332755260,1721503865681,-1754.92,0.00014794,2]
[332755261,1721503865690,-6103.93576511,0.00014794,2]
[332755262,1721504000254,3000.0,0.000225,30]
[332755291,1721504597072,3000.0,0.000225,30]
[332755292,1721504734520,159.76779207,9.999e-05,2]
[332755293,1721504793132,-167.82,0.00010959,2]
[332755294,1721504793157,-100.0219418,0.00010959,2]
[332755353,1721505038395,-739.08,0.00010959,2]
[332755354,1721505038410,-300.0,0.00011695,2]
[332755355,1721505038423,-300.0,0.00011695,2]
[332755356,1721505038433,-24900.0,0.00011696,2]
[332755357,1721505038446,-420.0,0.00012865,2]
[332755358,1721505038456,-2365.12862581,0.000129,2]
[332755359,1721505038466,-2365.12862578,0.000129,2]
[332755360,1721505038477,-2365.12862578,0.00013051,2]
[332755361,1721505038488,-184.23996685,0.00013598,2]
[332755362,1721505038498,-2340.91350937,0.00013598,2]
[332755363,1721505038509,-2000.0,0.00013598,2]
[332755364,1721505038519,-150.112233,0.000136,2]
[332755365,1721505038530,-327176.326255,0.00013668,2]
[332755366,1721505038542,-500.0,0.00013698,2]
[332755367,1721505038552,-500.0,0.00013698,2]
[332755368,1721505038563,-500.0,0.00013698,2]
[332755369,1721505038573,-255.62,0.00013698,2]
[332755370,1721505038583,-500.0,0.00013698,2]
[332755371,1721505038594,-500.0,0.00013698,2]
[332755372,1721505038604,-500.0,0.00013698,2]
[332755373,1721505038615,-2199.34,0.00013698,2]
[332755374,1721505038625,-289.40371987,0.00013698,2]
[332755375,1721505038636,-500.0,0.00013698,2]
[332755376,1721505038647,-500.0,0.00013698,2]
[332755377,1721505038658,-500.0,0.00013698,2]
[332755378,1721505038669,-500.0,0.00013698,2]
[332755379,1721505038680,-521.24,0.00013698,2]
[332755380,1721505038691,-500.0,0.00013698,2]
[332755381,1721505038702,-551.98589564,0.00013698,2]
[332755382,1721505038713,-642.9,0.00013698,2]
[332755383,1721505038724,-500.0,0.00013698,2]
[332755384,1721505038737,-713.56,0.00013698,2]
[332755385,1721505038749,-500.0,0.00013698,2]
[332755386,1721505038760,-500.0,0.00013698,2]
[332755387,1721505038770,-539.82,0.00013698,2]
[332755388,1721505038783,-500.0,0.00013698,2]
[332755389,1721505038794,-654.24,0.00013698,2]
[332755390,1721505038804,-609.52367989,0.00013698,2]
[332755391,1721505038815,-500.0,0.00013698,2]
[332755392,1721505038827,-500.0,0.00013698,2]
[332755393,1721505038838,-500.0,0.00013698,2]
[332755394,1721505038851,-500.0,0.00013698,2]
[332755395,1721505038862,-726.63,0.00013698,2]
[332755396,1721505038873,-500.0,0.00013698,2]
[332755397,1721505038884,-502.60980733,0.00013698,2]
[332755398,1721505038896,-500.0,0.00013698,2]
[332755399,1721505038907,-500.80679344,0.00013698,2]
[332755400,1721505038918,-2312.49,0.00013698,2]
[332755401,1721505038928,-258.57234386,0.00013698,2]
[332755402,1721505038939,-500.0,0.00013698,2]
[332755403,1721505038949,-500.0,0.00013698,2]
[332755404,1721505038960,-342.45378004,0.00013698,2]
[332755405,1721505038970,-525.96507878,0.00013698,2]
[332755406,1721505038981,-500.0,0.00013698,2]
[332755407,1721505038991,-500.0,0.00013698,2]
[332755408,1721505039001,-500.0,0.00013698,2]
[332755409,1721505039012,-500.0,0.00013698,2]
[332755410,1721505039023,-500.0,0.00013698,2]
[332755411,1721505039034,-500.0,0.00013698,2]
[332755412,1721505039044,-500.0,0.00013698,2]
[332755413,1721505039054,-1416.79,0.00013698,2]
[332755414,1721505039065,-500.0,0.00013698,2]
[332755415,1721505039075,-500.0,0.00013698,2]
[332755416,1721505039087,-500.0,0.00013698,2]
[332755417,1721505039096,-500.0,0.00013698,2]
[332755418,1721505039106,-500.0,0.00013698,2]
[332755419,1721505039116,-1189.46,0.00013698,2]
[332755420,1721505039126,-500.0,0.00013698,2]
[332755421,1721505039136,-564.55397441,0.00013698,2]
[332755422,1721505039146,-436.50278099,0.00013698,2]
[332755423,1721505039156,-500.81639661,0.00013698,2]
[332755424,1721505039168,-526.07354938,0.00013698,2]
[332755425,1721505039180,-500.0,0.00013698,2]
[332755426,1721505039191,-500.0,0.00013698,2]
[332755427,1721505039201,-500.0,0.00013698,2]
[332755428,1721505039212,-500.0,0.00013698,2]
[332755429,1721505039223,-500.0,0.00013698,2]
[332755430,1721505039235,-500.0,0.00013698,2]
[332755431,1721505039246,-500.0,0.00013698,2]
[332755432,1721505039258,-912.35,0.00013698,2]
[332755433,1721505039270,-500.0,0.00013698,2]
[332755434,1721505039283,-500.0,0.00013698,2]
[332755435,1721505039295,-500.0,0.00013698,2]
[332755436,1721505039308,-500.0,0.00013698,2]
[332755437,1721505039616,-2000.0,0.00013698,2]
[332755438,1721505039642,-500.0,0.00013698,2]
[332755439,1721505039657,-500.0,0.00013698,2]
[332755440,1721505039668,-500.0,0.00013698,2]
[332755441,1721505039679,-500.0,0.00013698,2]
[332755442,1721505039689,-500.0,0.00013698,2]
[332755443,1721505039698,-455.75116135,0.00013698,2]
[332755444,1721505039708,-500.0,0.00013698,2]
[332755445,1721505039717,-500.0,0.00013698,2]
[332755446,1721505039729,-500.0,0.00013698,2]
[332755447,1721505039739,-693.44,0.00013698,2]
[332755448,1721505039748,-500.0,0.00013698,2]
[332755449,1721505039759,-500.0,0.00013698,2]
[332755450,1721505039770,-617.69,0.00013698,2]
[332755451,1721505039781,-500.0,0.00013698,2]
[332755452,1721505039793,-500.0,0.00013698,2]
[332755453,1721505039803,-500.0,0.00013698,2]
[332755454,1721505039813,-500.0,0.00013698,2]
[332755455,1721505039824,-507.41895197,0.00013698,2]
[332755456,1721505039834,-500.0,0.00013698,2]
[332755457,1721505039844,-500.0,0.00013698,2]
[332755458,1721505039856,-500.0,0.00013698,2]
[332755460,1721505039865,-500.0,0.00013698,2]
[332755462,1721505039875,-500.0,0.00013698,2]
[332755464,1721505039884,-500.0,0.00013698,2]
[332755465,1721505039896,-204.12235404,0.00013698,2]
[332755466,1721505039908,-387.79553029,0.00013698,2]
[332755468,1721505039917,-500.0,0.00013698,2]
[332755470,1721505039927,-500.0,0.00013698,2]
[332755471,1721505039937,-500.0,0.00013698,2]
[332755472,1721505039947,-611.25044131,0.00013698,2]
[332755473,1721505039959,-500.0,0.00013698,2]
[332755474,1721505039969,-500.0,0.00013698,2]
[332755475,1721505039979,-500.0,0.00013698,2]
[332755476,1721505039990,-500.0,0.00013698,2]
[332755477,1721505040000,-500.0,0.00013698,2]
[332755478,1721505040010,-500.0,0.00013698,2]
[332755479,1721505040019,-500.0,0.00013698,2]
[332755481,1721505040029,-500.0,0.00013698,2]
[332755483,1721505040038,-500.0,0.00013698,2]
[332755484,1721505040048,-500.0,0.00013698,2]
[332755486,1721505040057,-500.0,0.00013698,2]
[332755488,1721505040066,-500.0,0.00013698,2]
[332755490,1721505040075,-500.0,0.00013698,2]
[332755491,1721505040085,-500.0,0.00013698,2]
[332755492,1721505040094,-500.0,0.00013698,2]
[332755493,1721505040104,-500.0,0.00013698,2]
[332755494,1721505040113,-500.0,0.00013698,2]
[332755495,1721505040123,-500.0,0.00013698,2]
[332755496,1721505040132,-500.0,0.00013698,2]
[332755497,1721505040141,-500.0,0.00013698,2]
[332755498,1721505040151,-500.0,0.00013698,2]
[332755499,1721505040160,-500.0,0.00013698,2]
[332755500,1721505040169,-500.0,0.00013698,2]
[332755501,1721505040178,-500.0,0.00013698,2]
[332755502,1721505040187,-500.0,0.00013698,2]
[332755503,1721505040196,-500.0,0.00013698,2]
[332755504,1721505040208,-500.0,0.00013698,2]
[332755505,1721505040218,-500.0,0.00013698,2]
[332755506,1721505040228,-500.0,0.00013698,2]
[332755507,1721505040239,-500.0,0.00013698,2]
[332755508,1721505040248,-500.0,0.00013698,2]
[332755509,1721505040259,-500.0,0.00013698,2]
[332755511,1721505040270,-500.0,0.00013698,2]
[332755513,1721505040279,-500.0,0.00013698,2]
[332755514,1721505040290,-500.0,0.00013698,2]
[332755515,1721505040299,-236.51559119,0.00013698,2]
[332755516,1721505040308,-500.0,0.00013698,2]
[332755517,1721505040317,-500.0,0.00013698,2]
[332755518,1721505040327,-500.0,0.00013698,2]
[332755520,1721505040338,-492.21736822,0.00013698,2]
[332755522,1721505040348,-500.0,0.00013698,2]
[332755523,1721505040359,-348.77204299,0.00013698,2]
[332755524,1721505040369,-500.0,0.00013698,2]
[332755526,1721505040378,-500.0,0.00013698,2]
[332755527,1721505040389,-500.0,0.00013698,2]
[332755528,1721505040403,-500.0,0.00013698,2]
[332755529,1721505040412,-500.0,0.00013698,2]
[332755530,1721505040422,-807.67,0.00013698,2]
[332755531,1721505040431,-500.0,0.00013698,2]
[332755532,1721505040440,-500.0,0.00013698,2]
[332755533,1721505040450,-500.0,0.00013698,2]
[332755534,1721505040459,-500.0,0.00013698,2]
[332755535,1721505040468,-855.61,0.00013698,2]
[332755536,1721505040478,-500.0,0.00013698,2]
[332755537,1721505040488,-500.0,0.00013698,2]
[332755538,1721505040497,-500.0,0.00013698,2]
[332755539,1721505040507,-500.0,0.00013698,2]
[332755540,1721505040516,-505.35435945,0.00013698,2]
[332755541,1721505040525,-500.0,0.00013698,2]
[332755542,1721505040536,-500.0,0.00013698,2]
[332755543,1721505040545,-534.87,0.00013698,2]
[332755544,1721505040555,-500.0,0.00013698,2]
[332755545,1721505040564,-500.0,0.00013698,2]
[332755546,1721505040574,-500.0,0.00013698,2]
[332755547,1721505040583,-500.0,0.00013698,2]
[332755548,1721505040592,-1276.73,0.00013698,2]
[332755549,1721505040602,-500.0,0.00013698,2]
[332755550,1721505040612,-600.4,0.00013698,2]
[332755551,1721505040621,-982.99,0.00013698,2]
[332755552,1721505040630,-500.0,0.00013698,2]
[332755553,1721505040641,-500.0,0.00013698,2]
[332755554,1721505040651,-512.07655604,0.00013698,2]
[332755555,1721505040660,-1040.73,0.00013698,2]
[332755556,1721505040669,-500.0,0.00013698,2]
[332755557,1721505040678,-500.0,0.00013698,2]
[332755558,1721505040688,-500.0,0.00013698,2]
[332755559,1721505040698,-537.08,0.00013698,2]
[332755560,1721505040708,-2665.52,0.00013698,2]
[332755561,1721505040718,-500.0,0.00013698,2]
[332755562,1721505040728,-500.0,0.00013698,2]
[332755563,1721505040738,-500.0,0.00013698,2]
[332755564,1721505040748,-500.0,0.00013698,2]
[332755565,1721505040758,-500.0,0.00013698,2]
[332755566,1721505040767,-500.0,0.00013698,2]
[332755567,1721505040777,-500.0,0.00013698,2]
[332755568,1721505040786,-500.0,0.00013698,2]
[332755569,1721505040796,-500.0,0.00013698,2]
[332755570,1721505040805,-500.0,0.00013698,2]
[332755571,1721505040815,-500.0,0.00013698,2]
[332755572,1721505040824,-2305.69,0.00013698,2]
[332755573,1721505040834,-500.0,0.00013698,2]
[332755574,1721505040843,-500.0,0.00013698,2]
[332755575,1721505040853,-500.0,0.00013698,2]
[332755576,1721505040863,-500.0,0.00013698,2]
[332755577,1721505040872,-500.0,0.00013698,2]
[332755578,1721505040881,-500.0,0.00013698,2]
[332755579,1721505040891,-501.28590095,0.00013698,2]
[332755580,1721505040900,-500.0,0.00013698,2]
[332755581,1721505040910,-500.0,0.00013698,2]
[332755582,1721505040919,-500.0,0.00013698,2]
[332755583,1721505040929,-510.37104917,0.00013698,2]
[332755584,1721505040938,-1328.62,0.00013698,2]
[332755585,1721505040947,-500.0,0.00013698,2]
[332755586,1721505040957,-500.0,0.00013698,2]
[332755587,1721505040967,-500.0,0.00013698,2]
[332755588,1721505040976,-500.0,0.00013698,2]
[332755589,1721505040986,-502.03808671,0.00013698,2]
[332755590,1721505040995,-556.66494551,0.00013698,2]
[332755591,1721505041005,-500.0,0.00013698,2]
[332755592,1721505041014,-500.0,0.00013698,2]
[332755593,1721505041023,-500.0,0.00013698,2]
[332755594,1721505041033,-500.0,0.00013698,2]
[332755595,1721505041042,-500.0,0.00013698,2]
[332755596,1721505041051,-500.0,0.00013698,2]
[332755597,1721505041060,-500.0,0.00013698,2]
[332755598,1721505041070,-500.0,0.00013698,2]
[332755599,1721505041080,-500.55636249,0.00013698,2]
[332755600,1721505041088,-500.0,0.00013698,2]
[332755601,1721505041097,-500.0,0.00013698,2]
[332755602,1721505041107,-500.0,0.00013698,2]
[332755603,1721505041116,-500.4941119,0.00013698,2]
[332755604,1721505041125,-500.0,0.00013698,2]
[332755605,1721505041135,-500.0,0.00013698,2]
[332755606,1721505041145,-571.36,0.00013698,2]
[332755607,1721505041154,-513.30695711,0.00013698,2]
[332755608,1721505041163,-503.14598103,0.00013698,2]
[332755609,1721505041173,-500.0,0.00013698,2]
[332755610,1721505041182,-816.65,0.00013698,2]
[332755611,1721505041191,-500.0,0.00013698,2]
[332755612,1721505041201,-500.0,0.00013698,2]
[332755613,1721505041210,-500.0,0.00013698,2]
[332755614,1721505041219,-501.43999562,0.00013698,2]
[332755615,1721505041228,-500.0,0.00013698,2]
[332755616,1721505041237,-515.13,0.00013698,2]
[332755617,1721505041246,-2488.95,0.00013698,2]
[332755618,1721505041255,-504.67,0.00013698,2]
[332755619,1721505041265,-500.0,0.00013698,2]
[332755620,1721505041275,-500.0,0.00013698,2]
[332755621,1721505041284,-3244.74,0.00013698,2]
[332755622,1721505041293,-505.11920375,0.00013698,2]
[332755623,1721505041302,-500.0,0.00013698,2]
[332755624,1721505041312,-500.0,0.00013698,2]
[332755625,1721505041321,-500.0,0.00013698,2]
[332755626,1721505041330,-855.39,0.00013698,2]
[332755627,1721505041339,-503.70346198,0.00013698,2]
[332755628,1721505041348,-634.94,0.00013698,2]
[332755629,1721505041357,-500.0,0.00013698,2]
[332755630,1721505041366,-1659.11,0.00013698,2]
[332755631,1721505041375,-987.25,0.00013698,2]
[332755632,1721505041385,-504.29336531,0.00013698,2]
[332755633,1721505041396,-772.19,0.00013698,2]
[332755634,1721505041407,-510.80465162,0.00013698,2]
[332755635,1721505041416,-500.0,0.00013698,2]
[332755636,1721505041424,-581.03636157,0.00013698,2]
[332755637,1721505041434,-2092.55,0.00013698,2]
[332755638,1721505041443,-500.0,0.00013698,2]
[332755639,1721505041452,-500.0,0.00013698,2]
[332755640,1721505041461,-889.11,0.00013698,2]
[332755641,1721505041470,-398.38256931,0.00013698,2]
[332755642,1721505041479,-500.0,0.00013698,2]
[332755643,1721505041489,-500.0,0.00013698,2]
[332755644,1721505041498,-500.0,0.00013698,2]
[332755645,1721505041507,-500.0,0.00013698,2]
[332755646,1721505041517,-500.0,0.00013698,2]
[332755647,1721505041526,-500.0,0.00013698,2]
[332755648,1721505041535,-500.0,0.00013698,2]
[332755649,1721505041544,-500.0,0.00013698,2]
[332755650,1721505041553,-611.34,0.00013698,2]
[332755651,1721505041562,-500.0,0.00013698,2]
[332755652,1721505041571,-355.02897317,0.00013698,2]
[332755653,1721505041580,-2867.86,0.00013698,2]
[332755654,1721505041589,-500.0,0.00013698,2]
[332755655,1721505041599,-500.0,0.00013698,2]
[332755656,1721505041608,-500.0,0.00013698,2]
[332755657,1721505041617,-1080.3,0.00013698,2]
[332755658,1721505041627,-500.0,0.00013698,2]
[332755659,1721505041636,-500.0,0.00013698,2]
[332755660,1721505041646,-501.22838301,0.00013698,2]
[332755661,1721505041656,-500.0,0.00013698,2]
[332755662,1721505041665,-501.25801672,0.00013698,2]
[332755663,1721505041674,-500.0,0.00013698,2]
[332755664,1721505041685,-499.97734961,0.00013698,2]
[332755665,1721505041695,-578.61,0.00013698,2]
[332755666,1721505041704,-500.0,0.00013698,2]
[332755667,1721505041713,-500.0,0.00013698,2]
[332755668,1721505041723,-1142.56,0.00013698,2]
[332755669,1721505041733,-500.0,0.00013698,2]
[332755670,1721505041742,-500.0,0.00013698,2]
[332755671,1721505041752,-594.49,0.00013698,2]
[332755672,1721505041762,-500.0,0.00013698,2]
[332755673,1721505041772,-4107.87,0.00013698,2]
[332755674,1721505041781,-500.0,0.00013698,2]
[332755675,1721505041790,-558.88,0.00013698,2]
[332755676,1721505041800,-500.0,0.00013698,2]
[332755677,1721505041810,-547.96,0.00013698,2]
[332755678,1721505041819,-783.15,0.00013698,2]
[332755679,1721505041828,-213.5647246,0.00013698,2]
[332755680,1721505041838,-500.0,0.00013698,2]
[332755681,1721505041847,-1407.73,0.00013698,2]
[332755682,1721505041856,-500.0,0.00013698,2]
[332755683,1721505041865,-503.50495794,0.00013698,2]
[332755684,1721505041875,-500.0,0.00013698,2]
[332755685,1721505041884,-500.0,0.00013698,2]
[332755686,1721505041894,-500.0,0.00013698,2]
[332755687,1721505041904,-500.0,0.00013698,2]
[332755688,1721505041914,-659.5,0.00013698,2]
[332755689,1721505041923,-500.0,0.00013698,2]